[Event "Titled Tuesday Blitz February 15 Late 2022"]
[White "Saim, Mohamed Ilias"]
[Black "Grave, Jacob Templen"]
[WhiteFideId "7900465"]
[BlackFideId "1542656"]
[WhiteElo "2006"]
[BlackElo "1737"]
[Result "0-1"]
[Round "05"]
[TimeControl "180+1"]
[Date "2022.02.16"]
[WhiteClock "0:00:07"]
[BlackClock "0:00:39"]

1. d4 {[%clk 0:03:00]}  g6 {[%clk 0:02:50]} 2. Nf3 {[%clk 0:02:58]}  Bg7 {[%clk 0:02:50]} 3. c4 {[%clk 0:02:57]}  d6 {[%clk 0:02:50]} 4. Bf4 {[%clk 0:02:54]}  Nd7 {[%clk 0:02:47]} 5. e4 {[%clk 0:02:42]}  e5 {[%clk 0:02:45]} 6. Be3 {[%clk 0:02:42]}  Ngf6 {[%clk 0:02:42]} 7. Nc3 {[%clk 0:02:41]}  O-O {[%clk 0:02:37]} 8. Be2 {[%clk 0:02:41]}  Re8 {[%clk 0:02:30]} 9. Qc2 {[%clk 0:02:29]}  exd4 {[%clk 0:02:10]} 10. Nxd4 {[%clk 0:02:26]}  Nc5 {[%clk 0:02:08]} 11. f3 {[%clk 0:02:19]}  a5 {[%clk 0:02:02]} 12. O-O {[%clk 0:02:19]}  Ne6 {[%clk 0:01:57]} 13. Rad1 {[%clk 0:01:59]}  Nxd4 {[%clk 0:01:54]} 14. Bxd4 {[%clk 0:01:59]}  Be6 {[%clk 0:01:51]} 15. c5 {[%clk 0:01:55]}  dxc5 {[%clk 0:01:44]} 16. Bxc5 {[%clk 0:01:56]}  Qc8 {[%clk 0:01:43]} 17. Be3 {[%clk 0:01:42]}  c6 {[%clk 0:01:40]} 18. Na4 {[%clk 0:01:37]}  Nd7 {[%clk 0:01:31]} 19. Bc4 {[%clk 0:01:14]}  Bxc4 {[%clk 0:01:27]} 20. Qxc4 {[%clk 0:01:09]}  b5 {[%clk 0:01:28]} 21. Qd3 {[%clk 0:01:04]}  Ne5 {[%clk 0:00:59]} 22. Nb6 {[%clk 0:00:48]}  Nxd3 {[%clk 0:00:59]} 23. Nxc8 {[%clk 0:00:46]}  Nxb2 {[%clk 0:00:58]} 24. Rc1 {[%clk 0:00:26]}  Raxc8 {[%clk 0:00:56]} 25. Bb6 {[%clk 0:00:24]}  a4 {[%clk 0:00:51]} 26. f4 {[%clk 0:00:21]}  Rxe4 {[%clk 0:00:50]} 27. Rfe1 {[%clk 0:00:16]}  Rxf4 {[%clk 0:00:42]} 28. Re2 {[%clk 0:00:11]}  Nc4 {[%clk 0:00:41]} 29. Bc5 {[%clk 0:00:09]}  Bd4+ {[%clk 0:00:41]} 30. Bxd4 {[%clk 0:00:07]}  Rxd4 {[%clk 0:00:42]} 31. Rce1 {[%clk 0:00:07]}  Rcd8 {[%clk 0:00:42]} 32. Kf2 {[%clk 0:00:07]}  Rd2 {[%clk 0:00:42]} 33. Rxd2 {[%clk 0:00:07]}  Rxd2+ {[%clk 0:00:43]} 34. Kf1 {[%clk 0:00:07]}  Kg7 {[%clk 0:00:41]} 35. h3 {[%clk 0:00:08]}  Rd1 {[%clk 0:00:40]} 36. Rxd1 {[%clk 0:00:07]}  Ne3+ {[%clk 0:00:40]} 37. Ke2 {[%clk 0:00:07]}  Nxd1 {[%clk 0:00:41]} 38. Kxd1 {[%clk 0:00:08]}  c5 {[%clk 0:00:42]} 39. Kd2 {[%clk 0:00:09]}  b4 {[%clk 0:00:38]} 40. Kc2 {[%clk 0:00:09]}  Kf6 {[%clk 0:00:38]} 41. Kd3 {[%clk 0:00:09]}  Ke5 {[%clk 0:00:38]} 42. Kc4 {[%clk 0:00:09]}  f5 {[%clk 0:00:38]} 43. g3 {[%clk 0:00:06]}  Ke4 {[%clk 0:00:36]} 44. h4 {[%clk 0:00:05]}  Kf3 {[%clk 0:00:35]} 45. Kxc5 {[%clk 0:00:03]}  b3 {[%clk 0:00:33]} 46. axb3 {[%clk 0:00:03]}  axb3 {[%clk 0:00:34]} 47. Kd6 {[%clk 0:00:04]}  b2 {[%clk 0:00:34]} 48. Kc5 {[%clk 0:00:04]}  b1=Q {[%clk 0:00:35]} 49. Kd4 {[%clk 0:00:05]}  Qe4+ {[%clk 0:00:35]} 50. Kc5 {[%clk 0:00:05]}  Kxg3 {[%clk 0:00:34]} 51. Kd6 {[%clk 0:00:06]}  f4 {[%clk 0:00:35]} 52. Kd7 {[%clk 0:00:05]}  f3 {[%clk 0:00:35]} 53. Kd6 {[%clk 0:00:06]}  f2 {[%clk 0:00:36]} 54. Kd7 {[%clk 0:00:06]}  f1=Q {[%clk 0:00:36]} 55. Kd6 {[%clk 0:00:06]}  Qfd3+ {[%clk 0:00:36]} 56. Kc5 {[%clk 0:00:06]}  Qec4+ {[%clk 0:00:37]} 57. Kb6 {[%clk 0:00:07]}  Qdb3+ {[%clk 0:00:38]} 58. Ka5 {[%clk 0:00:07]}  Qca4# {[%clk 0:00:39]} 0-1


[Site "https://www.chess.com"]

[Event "Titled Tuesday Blitz February 15 Late 2022"]
[White "Sanal, Vahap"]
[Black "Nazaretyan, Tigran"]
[WhiteFideId "6300545"]
[BlackFideId "24162345"]
[WhiteElo "2603"]
[BlackElo "2192"]
[Result "1-0"]
[Round "05"]
[TimeControl "180+1"]
[Date "2022.02.15"]
[WhiteClock "0:00:51"]
[BlackClock "0:00:24"]

1. e4 {[%clk 0:03:00]}  c5 {[%clk 0:02:56]} 2. Nf3 {[%clk 0:02:54]}  Nc6 {[%clk 0:02:55]} 3. Nc3 {[%clk 0:02:49]}  d6 {[%clk 0:02:55]} 4. d4 {[%clk 0:02:49]}  cxd4 {[%clk 0:02:55]} 5. Nxd4 {[%clk 0:02:49]}  Nf6 {[%clk 0:02:55]} 6. Bg5 {[%clk 0:02:47]}  e6 {[%clk 0:02:55]} 7. Bb5 {[%clk 0:02:47]}  Bd7 {[%clk 0:02:55]} 8. Qd3 {[%clk 0:02:43]}  Qb6 {[%clk 0:02:44]} 9. O-O-O {[%clk 0:02:41]}  Nxd4 {[%clk 0:02:31]} 10. Qxd4 {[%clk 0:02:40]}  Qxd4 {[%clk 0:02:30]} 11. Rxd4 {[%clk 0:02:40]}  a6 {[%clk 0:02:27]} 12. Bxd7+ {[%clk 0:02:38]}  Nxd7 {[%clk 0:02:26]} 13. Rc4 {[%clk 0:02:20]}  h6 {[%clk 0:02:21]} 14. Be3 {[%clk 0:02:13]}  Nc5 {[%clk 0:02:15]} 15. Bxc5 {[%clk 0:01:50]}  b5 {[%clk 0:02:04]} 16. Rd4 {[%clk 0:01:50]}  dxc5 {[%clk 0:02:04]} 17. Rd3 {[%clk 0:01:51]}  Be7 {[%clk 0:01:59]} 18. e5 {[%clk 0:01:50]}  c4 {[%clk 0:01:50]} 19. Rdd1 {[%clk 0:01:48]}  O-O {[%clk 0:01:43]} 20. Ne4 {[%clk 0:01:47]}  Rfd8 {[%clk 0:01:41]} 21. f4 {[%clk 0:01:43]}  Kf8 {[%clk 0:01:37]} 22. g3 {[%clk 0:01:42]}  f6 {[%clk 0:01:27]} 23. c3 {[%clk 0:01:22]}  a5 {[%clk 0:01:24]} 24. Kc2 {[%clk 0:01:20]}  b4 {[%clk 0:01:22]} 25. exf6 {[%clk 0:01:16]}  gxf6 {[%clk 0:01:21]} 26. Rxd8+ {[%clk 0:01:16]}  Rxd8 {[%clk 0:01:19]} 27. Nd2 {[%clk 0:01:16]}  Rc8 {[%clk 0:01:11]} 28. Re1 {[%clk 0:01:15]}  Kf7 {[%clk 0:01:10]} 29. Re4 {[%clk 0:01:15]}  h5 {[%clk 0:00:48]} 30. Rxc4 {[%clk 0:01:13]}  Rh8 {[%clk 0:00:45]} 31. Nf3 {[%clk 0:01:12]}  Rd8 {[%clk 0:00:38]} 32. Rc7 {[%clk 0:00:58]}  Rd5 {[%clk 0:00:29]} 33. c4 {[%clk 0:00:48]}  Rc5 {[%clk 0:00:28]} 34. Rxc5 {[%clk 0:00:46]}  Bxc5 {[%clk 0:00:29]} 35. Kb3 {[%clk 0:00:46]}  Kg6 {[%clk 0:00:27]} 36. Ka4 {[%clk 0:00:46]}  Bb6 {[%clk 0:00:20]} 37. Kb5 {[%clk 0:00:47]}  Bd8 {[%clk 0:00:20]} 38. Nd4 {[%clk 0:00:45]}  e5 {[%clk 0:00:19]} 39. Nc6 {[%clk 0:00:45]}  Bc7 {[%clk 0:00:19]} 40. Ne7+ {[%clk 0:00:44]}  Kf7 {[%clk 0:00:18]} 41. Nd5 {[%clk 0:00:45]}  exf4 {[%clk 0:00:18]} 42. Nxc7 {[%clk 0:00:44]}  fxg3 {[%clk 0:00:18]} 43. hxg3 {[%clk 0:00:43]}  f5 {[%clk 0:00:18]} 44. Nd5 {[%clk 0:00:44]}  Ke6 {[%clk 0:00:18]} 45. Nf4+ {[%clk 0:00:44]}  Ke5 {[%clk 0:00:17]} 46. Nxh5 {[%clk 0:00:45]}  Kd4 {[%clk 0:00:18]} 47. Kxa5 {[%clk 0:00:45]}  Kxc4 {[%clk 0:00:18]} 48. b3+ {[%clk 0:00:46]}  Kc3 {[%clk 0:00:18]} 49. Nf4 {[%clk 0:00:46]}  Kb2 {[%clk 0:00:18]} 50. Kxb4 {[%clk 0:00:47]}  Kxa2 {[%clk 0:00:19]} 51. Kc4 {[%clk 0:00:48]}  Kb2 {[%clk 0:00:18]} 52. b4 {[%clk 0:00:49]}  Kc2 {[%clk 0:00:19]} 53. b5 {[%clk 0:00:50]}  Kd2 {[%clk 0:00:20]} 54. b6 {[%clk 0:00:51]}  Ke3 {[%clk 0:00:21]} 55. b7 {[%clk 0:00:51]}  Kf3 {[%clk 0:00:21]} 56. Ne2 {[%clk 0:00:50]}  Kxe2 {[%clk 0:00:21]} 57. b8=Q {[%clk 0:00:50]}  Kf3 {[%clk 0:00:22]} 58. Qf4+ {[%clk 0:00:50]}  Kg2 {[%clk 0:00:23]} 59. Qxf5 {[%clk 0:00:50]}  Kxg3 {[%clk 0:00:23]} 60. Kd3 {[%clk 0:00:50]}  Kg2 {[%clk 0:00:23]} 61. Ke3 {[%clk 0:00:50]}  Kg3 {[%clk 0:00:24]} 62. Qg6+ {[%clk 0:00:50]}  Kh4 {[%clk 0:00:24]} 63. Kf3 {[%clk 0:00:51]} 1-0


[Site "https://www.chess.com"]

[Event "Titled Tuesday Blitz February 15 Late 2022"]
[White "Sjugirov, Sanan"]
[Black "Matinian, Nikita"]
[WhiteFideId "4189302"]
[BlackFideId "24129100"]
[WhiteElo "2602"]
[BlackElo "2422"]
[Result "1-0"]
[Round "05"]
[TimeControl "180+1"]
[Date "2022.02.15"]
[WhiteClock "0:00:07"]
[BlackClock "0:00:04"]

1. e4 {[%clk 0:02:29]}  e5 {[%clk 0:02:59]} 2. Nf3 {[%clk 0:02:28]}  Nc6 {[%clk 0:03:00]} 3. Bc4 {[%clk 0:02:28]}  Bc5 {[%clk 0:02:59]} 4. d3 {[%clk 0:02:27]}  d6 {[%clk 0:02:58]} 5. c3 {[%clk 0:02:25]}  Nf6 {[%clk 0:02:57]} 6. O-O {[%clk 0:02:23]}  Bb6 {[%clk 0:02:58]} 7. a4 {[%clk 0:02:20]}  a5 {[%clk 0:02:58]} 8. Re1 {[%clk 0:02:11]}  O-O {[%clk 0:02:57]} 9. Bg5 {[%clk 0:02:08]}  Be6 {[%clk 0:02:54]} 10. Nbd2 {[%clk 0:02:05]}  h6 {[%clk 0:02:54]} 11. Bh4 {[%clk 0:02:05]}  g5 {[%clk 0:02:53]} 12. Bg3 {[%clk 0:02:06]}  Kh8 {[%clk 0:02:41]} 13. Kh1 {[%clk 0:01:33]}  Nh5 {[%clk 0:02:37]} 14. Ng1 {[%clk 0:01:12]}  Nf4 {[%clk 0:02:37]} 15. Bxf4 {[%clk 0:01:11]}  exf4 {[%clk 0:02:36]} 16. d4 {[%clk 0:01:07]}  d5 {[%clk 0:02:34]} 17. exd5 {[%clk 0:01:05]}  Bxd5 {[%clk 0:02:35]} 18. f3 {[%clk 0:00:50]}  Qd7 {[%clk 0:02:23]} 19. Qb3 {[%clk 0:00:51]}  Rad8 {[%clk 0:02:17]} 20. Bxd5 {[%clk 0:00:50]}  Qxd5 {[%clk 0:02:18]} 21. Qxd5 {[%clk 0:00:50]}  Rxd5 {[%clk 0:02:18]} 22. Nc4 {[%clk 0:00:51]}  Kg7 {[%clk 0:02:16]} 23. Nh3 {[%clk 0:00:49]}  Nd8 {[%clk 0:02:10]} 24. Nf2 {[%clk 0:00:48]}  Ne6 {[%clk 0:02:10]} 25. Nd3 {[%clk 0:00:43]}  Ba7 {[%clk 0:02:08]} 26. Re5 {[%clk 0:00:41]}  Rfd8 {[%clk 0:02:07]} 27. Rxd5 {[%clk 0:00:19]}  Rxd5 {[%clk 0:02:07]} 28. Re1 {[%clk 0:00:14]}  c5 {[%clk 0:02:05]} 29. Re5 {[%clk 0:00:14]}  Rd8 {[%clk 0:01:48]} 30. d5 {[%clk 0:00:14]}  Bb8 {[%clk 0:01:45]} 31. dxe6 {[%clk 0:00:11]}  Rxd3 {[%clk 0:01:41]} 32. Re1 {[%clk 0:00:11]}  fxe6 {[%clk 0:01:41]} 33. Nxa5 {[%clk 0:00:09]}  b6 {[%clk 0:01:28]} 34. Nc4 {[%clk 0:00:10]}  Bc7 {[%clk 0:01:29]} 35. Kg1 {[%clk 0:00:10]}  Kf6 {[%clk 0:01:29]} 36. Kf2 {[%clk 0:00:10]}  h5 {[%clk 0:01:24]} 37. Ke2 {[%clk 0:00:11]}  Rd8 {[%clk 0:01:21]} 38. Rd1 {[%clk 0:00:10]}  Rc8 {[%clk 0:01:18]} 39. Rd7 {[%clk 0:00:09]}  g4 {[%clk 0:01:19]} 40. Rh7 {[%clk 0:00:08]}  Kg6 {[%clk 0:01:04]} 41. Re7 {[%clk 0:00:08]}  Kf6 {[%clk 0:01:02]} 42. Rh7 {[%clk 0:00:09]}  Kg6 {[%clk 0:00:59]} 43. Rd7 {[%clk 0:00:09]}  Kf6 {[%clk 0:00:57]} 44. Kd3 {[%clk 0:00:09]}  Bd8 {[%clk 0:00:17]} 45. Rh7 {[%clk 0:00:08]}  Kg6 {[%clk 0:00:16]} 46. Rd7 {[%clk 0:00:08]}  Ra8 {[%clk 0:00:16]} 47. b3 {[%clk 0:00:08]}  Kf5 {[%clk 0:00:13]} 48. Nd6+ {[%clk 0:00:08]}  Kg6 {[%clk 0:00:13]} 49. Ne4 {[%clk 0:00:07]}  Bh4 {[%clk 0:00:10]} 50. Rd6 {[%clk 0:00:07]}  Kf5 {[%clk 0:00:10]} 51. Rxb6 {[%clk 0:00:06]}  Be7 {[%clk 0:00:08]} 52. Rb7 {[%clk 0:00:06]}  Rd8+ {[%clk 0:00:08]} 53. Kc4 {[%clk 0:00:06]}  Re8 {[%clk 0:00:05]} 54. a5 {[%clk 0:00:06]}  h4 {[%clk 0:00:06]} 55. h3 {[%clk 0:00:06]}  gxh3 {[%clk 0:00:04]} 56. gxh3 {[%clk 0:00:07]} 1-0


[Site "https://www.chess.com"]

[Event "Titled Tuesday Blitz February 15 Late 2022"]
[White "Tanenbaum, Zachary"]
[Black "Reprintsev, Alexander"]
[WhiteFideId "2060850"]
[BlackFideId "14100541"]
[WhiteElo "2168"]
[BlackElo "2126"]
[Result "1/2-1/2"]
[Round "05"]
[TimeControl "180+1"]
[Date "2022.02.16"]
[WhiteClock "0:00:03"]
[BlackClock "0:00:07"]

1. e4 {[%clk 0:01:38]}  d5 {[%clk 0:02:56]} 2. exd5 {[%clk 0:01:38]}  Qxd5 {[%clk 0:02:56]} 3. Nc3 {[%clk 0:01:38]}  Qa5 {[%clk 0:02:56]} 4. d4 {[%clk 0:01:39]}  Nf6 {[%clk 0:02:56]} 5. Nf3 {[%clk 0:01:38]}  Nc6 {[%clk 0:02:55]} 6. Bd2 {[%clk 0:01:36]}  a6 {[%clk 0:02:55]} 7. Bc4 {[%clk 0:01:26]}  Qh5 {[%clk 0:02:44]} 8. Ne5 {[%clk 0:00:37]}  Bg4 {[%clk 0:02:35]} 9. Nxg4 {[%clk 0:00:35]}  Qxg4 {[%clk 0:02:34]} 10. Be3 {[%clk 0:00:23]}  e6 {[%clk 0:02:30]} 11. Qxg4 {[%clk 0:00:20]}  Nxg4 {[%clk 0:02:29]} 12. O-O-O {[%clk 0:00:20]}  O-O-O {[%clk 0:02:27]} 13. d5 {[%clk 0:00:20]}  Na5 {[%clk 0:02:27]} 14. Bb3 {[%clk 0:00:18]}  Nxe3 {[%clk 0:02:27]} 15. fxe3 {[%clk 0:00:18]}  exd5 {[%clk 0:02:25]} 16. Bxd5 {[%clk 0:00:17]}  Bc5 {[%clk 0:02:23]} 17. Bxf7 {[%clk 0:00:15]}  Bxe3+ {[%clk 0:02:23]} 18. Kb1 {[%clk 0:00:16]}  Kb8 {[%clk 0:02:05]} 19. Nd5 {[%clk 0:00:14]}  Rhf8 {[%clk 0:01:51]} 20. Nxe3 {[%clk 0:00:11]}  Rxd1+ {[%clk 0:01:50]} 21. Rxd1 {[%clk 0:00:12]}  Rxf7 {[%clk 0:01:50]} 22. b3 {[%clk 0:00:08]}  Nc6 {[%clk 0:01:50]} 23. Rd2 {[%clk 0:00:07]}  Ne5 {[%clk 0:01:47]} 24. Kc1 {[%clk 0:00:07]}  c6 {[%clk 0:01:46]} 25. h3 {[%clk 0:00:07]}  Kc7 {[%clk 0:01:46]} 26. Kd1 {[%clk 0:00:07]}  Ng6 {[%clk 0:01:41]} 27. Ke1 {[%clk 0:00:07]}  Nh4 {[%clk 0:01:36]} 28. Rf2 {[%clk 0:00:06]}  Re7 {[%clk 0:01:35]} 29. Re2 {[%clk 0:00:06]}  Kd7 {[%clk 0:01:32]} 30. Kd2 {[%clk 0:00:06]}  Ke8 {[%clk 0:01:30]} 31. Kd3 {[%clk 0:00:04]}  b5 {[%clk 0:01:20]} 32. Rf2 {[%clk 0:00:04]}  Ng6 {[%clk 0:01:18]} 33. Nf5 {[%clk 0:00:04]}  Rd7+ {[%clk 0:01:15]} 34. Kc3 {[%clk 0:00:05]}  c5 {[%clk 0:01:13]} 35. Re2+ {[%clk 0:00:04]}  Kf7 {[%clk 0:01:12]} 36. a3 {[%clk 0:00:05]}  Nf4 {[%clk 0:01:06]} 37. Rf2 {[%clk 0:00:04]}  Nd5+ {[%clk 0:01:07]} 38. Kb2 {[%clk 0:00:05]}  Nf6 {[%clk 0:01:06]} 39. Ng3 {[%clk 0:00:05]}  Kg6 {[%clk 0:01:04]} 40. Nf5 {[%clk 0:00:05]}  Ne4 {[%clk 0:01:01]} 41. Rf4 {[%clk 0:00:05]}  Nf6 {[%clk 0:00:46]} 42. Ne3 {[%clk 0:00:05]}  h5 {[%clk 0:00:44]} 43. Rf5 {[%clk 0:00:04]}  Re7 {[%clk 0:00:40]} 44. Rf3 {[%clk 0:00:05]}  Re5 {[%clk 0:00:39]} 45. Rg3+ {[%clk 0:00:05]}  Kf7 {[%clk 0:00:37]} 46. Rf3 {[%clk 0:00:05]}  g5 {[%clk 0:00:35]} 47. Nf5 {[%clk 0:00:05]}  Kg6 {[%clk 0:00:34]} 48. Ne3 {[%clk 0:00:05]}  g4 {[%clk 0:00:32]} 49. hxg4 {[%clk 0:00:06]}  hxg4 {[%clk 0:00:33]} 50. Rxf6+ {[%clk 0:00:06]}  Kg5 {[%clk 0:00:30]} 51. Rxa6 {[%clk 0:00:04]}  Rxe3 {[%clk 0:00:30]} 52. Rb6 {[%clk 0:00:04]}  Rg3 {[%clk 0:00:28]} 53. Rxb5 {[%clk 0:00:05]}  Rxg2 {[%clk 0:00:28]} 54. Rxc5+ {[%clk 0:00:05]}  Kh4 {[%clk 0:00:27]} 55. a4 {[%clk 0:00:06]}  Rf2 {[%clk 0:00:27]} 56. a5 {[%clk 0:00:07]}  g3 {[%clk 0:00:27]} 57. Rc8 {[%clk 0:00:07]}  Rf5 {[%clk 0:00:26]} 58. Rh8+ {[%clk 0:00:04]}  Kg4 {[%clk 0:00:26]} 59. Rg8+ {[%clk 0:00:05]}  Rg5 {[%clk 0:00:27]} 60. Rxg5+ {[%clk 0:00:04]}  Kxg5 {[%clk 0:00:27]} 61. a6 {[%clk 0:00:05]}  g2 {[%clk 0:00:27]} 62. a7 {[%clk 0:00:06]}  g1=Q {[%clk 0:00:28]} 63. a8=Q {[%clk 0:00:06]}  Qd4+ {[%clk 0:00:29]} 64. Ka2 {[%clk 0:00:05]}  Qd1 {[%clk 0:00:28]} 65. Qa5+ {[%clk 0:00:05]}  Kg6 {[%clk 0:00:27]} 66. Qb6+ {[%clk 0:00:05]}  Kh7 {[%clk 0:00:27]} 67. Qc7+ {[%clk 0:00:05]}  Kg8 {[%clk 0:00:26]} 68. Kb2 {[%clk 0:00:05]}  Qd4+ {[%clk 0:00:26]} 69. Qc3 {[%clk 0:00:05]}  Qd1 {[%clk 0:00:26]} 70. Qc4+ {[%clk 0:00:06]}  Kh8 {[%clk 0:00:25]} 71. b4 {[%clk 0:00:06]}  Qg1 {[%clk 0:00:18]} 72. Qc3+ {[%clk 0:00:03]}  Kg8 {[%clk 0:00:17]} 73. b5 {[%clk 0:00:02]}  Qb6 {[%clk 0:00:15]} 74. Qb3+ {[%clk 0:00:01]}  Kf8 {[%clk 0:00:15]} 75. Qb4+ {[%clk 0:00:02]}  Ke8 {[%clk 0:00:14]} 76. Kb3 {[%clk 0:00:03]}  Kd8 {[%clk 0:00:13]} 77. c4 {[%clk 0:00:03]}  Qe3+ {[%clk 0:00:13]} 78. Qc3 {[%clk 0:00:04]}  Qc5 {[%clk 0:00:13]} 79. Qd3+ {[%clk 0:00:04]}  Kc8 {[%clk 0:00:13]} 80. Qd5 {[%clk 0:00:05]}  Qg1 {[%clk 0:00:12]} 81. Qc6+ {[%clk 0:00:04]}  Kb8 {[%clk 0:00:12]} 82. Kb4 {[%clk 0:00:05]}  Qe1+ {[%clk 0:00:11]} 83. Kc5 {[%clk 0:00:05]}  Qe3+ {[%clk 0:00:11]} 84. Kd5 {[%clk 0:00:06]}  Qf3+ {[%clk 0:00:11]} 85. Kd4 {[%clk 0:00:06]}  Qf2+ {[%clk 0:00:11]} 86. Ke5 {[%clk 0:00:07]}  Qg3+ {[%clk 0:00:11]} 87. Ke6 {[%clk 0:00:07]}  Qg6+ {[%clk 0:00:11]} 88. Ke7 {[%clk 0:00:06]}  Qg7+ {[%clk 0:00:11]} 89. Kd8 {[%clk 0:00:06]}  Qg5+ {[%clk 0:00:11]} 90. Kd7 {[%clk 0:00:06]}  Qg7+ {[%clk 0:00:11]} 91. Kd6 {[%clk 0:00:06]}  Qg3+ {[%clk 0:00:11]} 92. Kc5 {[%clk 0:00:05]}  Qf2+ {[%clk 0:00:11]} 93. Kd5 {[%clk 0:00:05]}  Qf3+ {[%clk 0:00:11]} 94. Kd6 {[%clk 0:00:05]}  Qf6+ {[%clk 0:00:11]} 95. Kd7 {[%clk 0:00:04]}  Qf7+ {[%clk 0:00:11]} 96. Kd8 {[%clk 0:00:04]}  Qg8+ {[%clk 0:00:08]} 97. Qe8 {[%clk 0:00:02]}  Qxc4 {[%clk 0:00:07]} 98. Ke7+ {[%clk 0:00:02]}  Kb7 {[%clk 0:00:07]} 99. Qd7+ {[%clk 0:00:02]}  Kb6 {[%clk 0:00:07]} 100. Qd6+ {[%clk 0:00:02]}  Kxb5 {[%clk 0:00:07]} 101. Qd7+ {[%clk 0:00:03]}  Qc6 {[%clk 0:00:06]} 102. Qxc6+ {[%clk 0:00:03]}  Kxc6 {[%clk 0:00:07]} 1/2-1/2


[Site "https://www.chess.com"]

[Event "Titled Tuesday Blitz February 15 Late 2022"]
[White "Timofeev, Artyom"]
[Black "Hambleton, Aman"]
[WhiteFideId "4140419"]
[BlackFideId "2606577"]
[WhiteElo "2583"]
[BlackElo "2552"]
[Result "0-1"]
[Round "05"]
[TimeControl "180+1"]
[Date "2022.02.15"]
[WhiteClock "0:00:01"]
[BlackClock "0:00:01"]

1. d4 {[%clk 0:03:00]}  Nf6 {[%clk 0:02:58]} 2. Nf3 {[%clk 0:03:00]}  e6 {[%clk 0:02:55]} 3. Bg5 {[%clk 0:02:59]}  h6 {[%clk 0:02:51]} 4. Bxf6 {[%clk 0:03:00]}  Qxf6 {[%clk 0:02:52]} 5. e4 {[%clk 0:03:00]}  d6 {[%clk 0:02:52]} 6. Nc3 {[%clk 0:02:59]}  Nd7 {[%clk 0:02:47]} 7. Qd2 {[%clk 0:02:52]}  c6 {[%clk 0:02:32]} 8. O-O-O {[%clk 0:02:45]}  e5 {[%clk 0:02:32]} 9. Kb1 {[%clk 0:02:42]}  Be7 {[%clk 0:02:20]} 10. Bc4 {[%clk 0:02:41]}  O-O {[%clk 0:02:04]} 11. Bb3 {[%clk 0:02:41]}  a5 {[%clk 0:02:00]} 12. a4 {[%clk 0:02:06]}  Bd8 {[%clk 0:01:37]} 13. h4 {[%clk 0:02:01]}  Bb6 {[%clk 0:01:29]} 14. Rhe1 {[%clk 0:01:48]}  Re8 {[%clk 0:01:23]} 15. Re3 {[%clk 0:01:37]}  Nf8 {[%clk 0:01:13]} 16. Ne2 {[%clk 0:01:18]}  Bg4 {[%clk 0:00:56]} 17. Nh2 {[%clk 0:01:06]}  Qxh4 {[%clk 0:00:19]} 18. Nxg4 {[%clk 0:00:46]}  Qxg4 {[%clk 0:00:20]} 19. Rg3 {[%clk 0:00:27]}  Qh4 {[%clk 0:00:18]} 20. f3 {[%clk 0:00:25]}  Ne6 {[%clk 0:00:12]} 21. Rg4 {[%clk 0:00:23]}  Qf6 {[%clk 0:00:12]} 22. d5 {[%clk 0:00:23]}  Nd4 {[%clk 0:00:08]} 23. Nxd4 {[%clk 0:00:21]}  exd4 {[%clk 0:00:04]} 24. dxc6 {[%clk 0:00:19]}  Re7 {[%clk 0:00:03]} 25. Rf4 {[%clk 0:00:17]}  Qg5 {[%clk 0:00:02]} 26. cxb7 {[%clk 0:00:15]}  Rb8 {[%clk 0:00:02]} 27. Rf5 {[%clk 0:00:13]}  Qxd2 {[%clk 0:00:02]} 28. Rxd2 {[%clk 0:00:14]}  Rbxb7 {[%clk 0:00:03]} 29. Rb5 {[%clk 0:00:12]}  Bc5 {[%clk 0:00:03]} 30. Rxa5 {[%clk 0:00:11]}  g6 {[%clk 0:00:02]} 31. Rd3 {[%clk 0:00:11]}  Kg7 {[%clk 0:00:02]} 32. Bd5 {[%clk 0:00:09]}  Rb8 {[%clk 0:00:01]} 33. Rb5 {[%clk 0:00:09]}  Rxb5 {[%clk 0:00:01]} 34. axb5 {[%clk 0:00:09]}  h5 {[%clk 0:00:02]} 35. f4 {[%clk 0:00:07]}  f5 {[%clk 0:00:02]} 36. exf5 {[%clk 0:00:07]}  gxf5 {[%clk 0:00:01]} 37. Ka2 {[%clk 0:00:07]}  h4 {[%clk 0:00:02]} 38. Kb3 {[%clk 0:00:07]}  Kh6 {[%clk 0:00:02]} 39. Kc4 {[%clk 0:00:07]}  Kh5 {[%clk 0:00:02]} 40. Bf3+ {[%clk 0:00:07]}  Kg6 {[%clk 0:00:02]} 41. Kd5 {[%clk 0:00:07]}  Kf6 {[%clk 0:00:01]} 42. b4 {[%clk 0:00:06]}  Bxb4 {[%clk 0:00:02]} 43. Rxd4 {[%clk 0:00:06]}  Bc5 {[%clk 0:00:02]} 44. Rc4 {[%clk 0:00:07]}  Re3 {[%clk 0:00:02]} 45. Kc6 {[%clk 0:00:03]}  h3 {[%clk 0:00:02]} 46. gxh3 {[%clk 0:00:03]}  Rxf3 {[%clk 0:00:02]} 47. b6 {[%clk 0:00:02]}  Bxb6 {[%clk 0:00:02]} 48. Kxb6 {[%clk 0:00:02]}  Rxh3 {[%clk 0:00:02]} 49. Rd4 {[%clk 0:00:02]}  Ke6 {[%clk 0:00:02]} 50. c4 {[%clk 0:00:02]}  Rb3+ {[%clk 0:00:01]} 51. Kc6 {[%clk 0:00:03]}  Ke7 {[%clk 0:00:01]} 52. Kd5 {[%clk 0:00:01]}  Kd7 {[%clk 0:00:01]} 53. Rd1 {[%clk 0:00:01]}  Ra3 {[%clk 0:00:01]} 0-1


[Site "https://www.chess.com"]

[Event "Titled Tuesday Blitz February 15 Late 2022"]
[White "Titichoca Daza, Daniel"]
[Black "Rorrer, Grayson"]
[WhiteFideId "3309550"]
[BlackFideId "30944996"]
[WhiteElo "1968"]
[BlackElo "2122"]
[Result "1-0"]
[Round "05"]
[TimeControl "180+1"]
[Date "2022.02.16"]
[WhiteClock "0:00:03"]
[BlackClock "0:00:01"]

1. e4 {[%clk 0:03:00]}  c5 {[%clk 0:02:57]} 2. Nf3 {[%clk 0:03:00]}  d6 {[%clk 0:02:57]} 3. d4 {[%clk 0:03:00]}  cxd4 {[%clk 0:02:58]} 4. Nxd4 {[%clk 0:03:00]}  Nf6 {[%clk 0:02:59]} 5. Nc3 {[%clk 0:03:00]}  a6 {[%clk 0:02:59]} 6. Bg5 {[%clk 0:02:57]}  Nbd7 {[%clk 0:02:59]} 7. f4 {[%clk 0:02:56]}  Qc7 {[%clk 0:02:57]} 8. Qe2 {[%clk 0:02:47]}  b5 {[%clk 0:02:52]} 9. O-O-O {[%clk 0:02:41]}  e5 {[%clk 0:02:16]} 10. Nd5 {[%clk 0:02:22]}  Nxd5 {[%clk 0:01:58]} 11. exd5 {[%clk 0:02:23]}  Bb7 {[%clk 0:01:58]} 12. Nc6 {[%clk 0:01:17]}  Bxc6 {[%clk 0:01:23]} 13. dxc6 {[%clk 0:01:17]}  Qxc6 {[%clk 0:01:24]} 14. Rg1 {[%clk 0:00:59]}  Rc8 {[%clk 0:01:00]} 15. g3 {[%clk 0:00:56]}  e4 {[%clk 0:00:59]} 16. Bh3 {[%clk 0:00:52]}  Rc7 {[%clk 0:00:54]} 17. Rge1 {[%clk 0:00:46]}  d5 {[%clk 0:00:47]} 18. Bf5 {[%clk 0:00:34]}  Be7 {[%clk 0:00:31]} 19. Bxe7 {[%clk 0:00:15]}  Kxe7 {[%clk 0:00:32]} 20. Kb1 {[%clk 0:00:15]}  g6 {[%clk 0:00:23]} 21. Bh3 {[%clk 0:00:12]}  Rhc8 {[%clk 0:00:14]} 22. g4 {[%clk 0:00:10]}  Nb6 {[%clk 0:00:06]} 23. Rc1 {[%clk 0:00:06]}  Qc4 {[%clk 0:00:05]} 24. Qd2 {[%clk 0:00:03]}  Qc5 {[%clk 0:00:04]} 25. f5 {[%clk 0:00:04]}  Nc4 {[%clk 0:00:04]} 26. Qg5+ {[%clk 0:00:04]}  Kd6 {[%clk 0:00:02]} 27. Qf6+ {[%clk 0:00:03]}  Kd7 {[%clk 0:00:02]} 28. g5 {[%clk 0:00:04]}  Qd6 {[%clk 0:00:01]} 29. fxg6+ {[%clk 0:00:03]}  Ke8 {[%clk 0:00:01]} 30. g7 {[%clk 0:00:03]}  Qxf6 {[%clk 0:00:01]} 31. g8=Q+ {[%clk 0:00:03]} 1-0


[Site "https://www.chess.com"]